[Event "Titled Tuesday Blitz October 31 Early 2023"]
[White "Nurmanova, Alua"]
[Black "Korchmar, Vasiliy"]
[WhiteFideId "13729390"]
[BlackFideId "24131750"]
[WhiteElo "2629"]
[BlackElo "2768"]
[Result "1-0"]
[Round "5"]
[TimeControl "180+1"]
[Date "2023.10.31"]
[WhiteClock "0:01:01"]
[BlackClock "0:00:00"]
[Board "40"]

1. e4 {[%clk 0:03:00]}  c5 {[%clk 0:03:00]} 2. Nf3 {[%clk 0:03:00]}  d6 {[%clk 0:03:00]} 3. d4 {[%clk 0:03:01]}  cxd4 {[%clk 0:03:01]} 4. Nxd4 {[%clk 0:03:02]}  Nf6 {[%clk 0:03:02]} 5. Nc3 {[%clk 0:03:02]}  Nc6 {[%clk 0:03:02]} 6. Bg5 {[%clk 0:03:02]}  Bd7 {[%clk 0:03:02]} 7. Qd2 {[%clk 0:02:56]}  a6 {[%clk 0:03:02]} 8. O-O-O {[%clk 0:02:54]}  e6 {[%clk 0:03:03]} 9. f4 {[%clk 0:02:53]}  Be7 {[%clk 0:03:02]} 10. Nf3 {[%clk 0:02:47]}  b5 {[%clk 0:03:02]} 11. a3 {[%clk 0:02:47]}  b4 {[%clk 0:02:49]} 12. axb4 {[%clk 0:02:46]}  Nxb4 {[%clk 0:02:50]} 13. e5 {[%clk 0:02:29]}  Nfd5 {[%clk 0:02:39]} 14. exd6 {[%clk 0:02:17]}  Bxg5 {[%clk 0:02:37]} 15. fxg5 {[%clk 0:02:14]}  Nxc3 {[%clk 0:02:37]} 16. bxc3 {[%clk 0:02:12]}  Qa5 {[%clk 0:02:37]} 17. Qd4 {[%clk 0:02:05]}  Na2+ {[%clk 0:01:40]} 18. Kd2 {[%clk 0:02:04]}  Rc8 {[%clk 0:01:40]} 19. Qxg7 {[%clk 0:01:43]}  Rf8 {[%clk 0:01:38]} 20. Qf6 {[%clk 0:01:43]}  Qxc3+ {[%clk 0:01:29]} 21. Qxc3 {[%clk 0:01:43]}  Nxc3 {[%clk 0:01:30]} 22. Re1 {[%clk 0:01:41]}  a5 {[%clk 0:01:17]} 23. Ne5 {[%clk 0:01:36]}  f6 {[%clk 0:01:13]} 24. gxf6 {[%clk 0:01:31]}  Rxf6 {[%clk 0:01:14]} 25. Bc4 {[%clk 0:01:27]}  Na4 {[%clk 0:00:39]} 26. Nxd7 {[%clk 0:01:25]}  Rf2+ {[%clk 0:00:22]} 27. Re2 {[%clk 0:01:18]}  Rxc4 {[%clk 0:00:11]} 28. Rxf2 {[%clk 0:01:18]}  Kxd7 {[%clk 0:00:12]} 29. Rf7+ {[%clk 0:01:13]}  Kxd6 {[%clk 0:00:12]} 30. Rxh7 {[%clk 0:01:14]}  Nc5 {[%clk 0:00:13]} 31. Ra7 {[%clk 0:01:11]}  a4 {[%clk 0:00:12]} 32. h4 {[%clk 0:01:11]}  Rg4 {[%clk 0:00:12]} 33. Rh2 {[%clk 0:01:10]}  Ne4+ {[%clk 0:00:01]} 34. Ke3 {[%clk 0:01:09]}  Nf6 {[%clk 0:00:01]} 35. h5 {[%clk 0:01:07]}  Rg8 {[%clk 0:00:02]} 36. Rxa4 {[%clk 0:01:06]}  Ng4+ {[%clk 0:00:01]} 37. Rxg4 {[%clk 0:01:06]}  Rxg4 {[%clk 0:00:02]} 38. h6 {[%clk 0:01:06]}  Rg8 {[%clk 0:00:03]} 39. g4 {[%clk 0:01:04]}  Ke5 {[%clk 0:00:02]} 40. Rh5+ {[%clk 0:01:01]}  Kf6 {[%clk 0:00:02]} 41. Kf4 {[%clk 0:01:01]}  e5+ {[%clk 0:00:00]} 42. Rxe5 {[%clk 0:01:01]} 1-0


[Site "https://www.chess.com"]

[Event "Titled Tuesday Blitz October 31 Early 2023"]
[White "Zhao, Erick"]
[Black "Skatchkov, Valery"]
[WhiteFideId "30946930"]
[BlackFideId "24195812"]
[WhiteElo "2741"]
[BlackElo "2564"]
[Result "0-1"]
[Round "5"]
[TimeControl "180+1"]
[Date "2023.10.31"]
[WhiteClock "0:00:00"]
[BlackClock "0:00:25"]
[Board "47"]

1. e4 {[%clk 0:02:58]}  e5 {[%clk 0:02:56]} 2. Ne2 {[%clk 0:02:56]}  Nc6 {[%clk 0:02:55]} 3. Nbc3 {[%clk 0:02:56]}  Nf6 {[%clk 0:02:55]} 4. Ng3 {[%clk 0:02:56]}  Bc5 {[%clk 0:02:53]} 5. Bc4 {[%clk 0:02:55]}  d6 {[%clk 0:02:53]} 6. h3 {[%clk 0:02:52]}  Be6 {[%clk 0:02:53]} 7. Bxe6 {[%clk 0:02:47]}  fxe6 {[%clk 0:02:54]} 8. d3 {[%clk 0:02:47]}  O-O {[%clk 0:02:54]} 9. O-O {[%clk 0:02:48]}  Qe8 {[%clk 0:02:51]} 10. Be3 {[%clk 0:02:44]}  Bxe3 {[%clk 0:02:50]} 11. fxe3 {[%clk 0:02:45]}  Qg6 {[%clk 0:02:50]} 12. Rf3 {[%clk 0:02:42]}  d5 {[%clk 0:02:32]} 13. exd5 {[%clk 0:02:40]}  exd5 {[%clk 0:02:32]} 14. e4 {[%clk 0:02:37]}  Nd4 {[%clk 0:02:32]} 15. Re3 {[%clk 0:02:31]}  Qg5 {[%clk 0:02:32]} 16. Nf1 {[%clk 0:02:23]}  Nxe4 {[%clk 0:02:28]} 17. Nxd5 {[%clk 0:01:59]}  c6 {[%clk 0:01:21]} 18. Ne7+ {[%clk 0:01:36]}  Qxe7 {[%clk 0:01:21]} 19. Rxe4 {[%clk 0:01:36]}  Qc5 {[%clk 0:01:22]} 20. Ne3 {[%clk 0:01:35]}  Rf4 {[%clk 0:01:16]} 21. c3 {[%clk 0:01:18]}  Nf3+ {[%clk 0:00:48]} 22. gxf3 {[%clk 0:00:57]}  Rxe4 {[%clk 0:00:49]} 23. dxe4 {[%clk 0:00:52]}  Qxe3+ {[%clk 0:00:49]} 24. Kg2 {[%clk 0:00:53]}  Qg5+ {[%clk 0:00:50]} 25. Kh1 {[%clk 0:00:53]}  Qg3 {[%clk 0:00:49]} 26. Qb3+ {[%clk 0:00:31]}  Kh8 {[%clk 0:00:49]} 27. Qxb7 {[%clk 0:00:28]}  Qxh3+ {[%clk 0:00:44]} 28. Kg1 {[%clk 0:00:28]}  Qg3+ {[%clk 0:00:45]} 29. Kh1 {[%clk 0:00:28]}  Qxf3+ {[%clk 0:00:44]} 30. Kg1 {[%clk 0:00:28]}  Rf8 {[%clk 0:00:38]} 31. Qe7 {[%clk 0:00:27]}  h6 {[%clk 0:00:34]} 32. Qxe5 {[%clk 0:00:03]}  Rf4 {[%clk 0:00:25]} 33. Qe8+ {[%clk 0:00:00]}  Kh7 {[%clk 0:00:25]} 0-1


[Site "https://www.chess.com"]

[Event "Titled Tuesday Blitz October 31 Early 2023"]
[White "Halkias, Stelios"]
[Black "Brown, Andrew"]
[WhiteFideId "4201809"]
[BlackFideId "3206513"]
[WhiteElo "2741"]
[BlackElo "2554"]
[Result "0-1"]
[Round "5"]
[TimeControl "180+1"]
[Date "2023.10.31"]
[WhiteClock "0:00:11"]
[BlackClock "0:00:05"]
[Board "48"]

1. Nf3 {[%clk 0:03:00]}  Nf6 {[%clk 0:02:57]} 2. c4 {[%clk 0:03:00]}  e6 {[%clk 0:02:57]} 3. g3 {[%clk 0:03:00]}  d5 {[%clk 0:02:56]} 4. d4 {[%clk 0:03:00]}  Be7 {[%clk 0:02:55]} 5. Bg2 {[%clk 0:03:00]}  O-O {[%clk 0:02:55]} 6. O-O {[%clk 0:03:00]}  c6 {[%clk 0:02:54]} 7. Nc3 {[%clk 0:02:58]}  Nbd7 {[%clk 0:02:46]} 8. Qd3 {[%clk 0:02:57]}  a5 {[%clk 0:02:42]} 9. b3 {[%clk 0:02:53]}  b6 {[%clk 0:02:35]} 10. e4 {[%clk 0:02:49]}  Ba6 {[%clk 0:02:30]} 11. e5 {[%clk 0:02:40]}  Ne8 {[%clk 0:01:52]} 12. Rd1 {[%clk 0:02:38]}  Nc7 {[%clk 0:01:30]} 13. h4 {[%clk 0:02:28]}  h6 {[%clk 0:01:24]} 14. Bf1 {[%clk 0:02:12]}  b5 {[%clk 0:01:19]} 15. Qc2 {[%clk 0:02:12]}  bxc4 {[%clk 0:01:13]} 16. bxc4 {[%clk 0:02:11]}  Nb6 {[%clk 0:01:12]} 17. cxd5 {[%clk 0:02:00]}  cxd5 {[%clk 0:01:09]} 18. Bxa6 {[%clk 0:01:56]}  Nxa6 {[%clk 0:01:08]} 19. Qe2 {[%clk 0:01:46]}  Nc4 {[%clk 0:00:54]} 20. Bf4 {[%clk 0:01:38]}  Qd7 {[%clk 0:00:49]} 21. g4 {[%clk 0:01:35]}  Rfc8 {[%clk 0:00:48]} 22. g5 {[%clk 0:01:34]}  h5 {[%clk 0:00:45]} 23. g6 {[%clk 0:01:13]}  fxg6 {[%clk 0:00:45]} 24. Bg5 {[%clk 0:01:14]}  Bf8 {[%clk 0:00:44]} 25. Rab1 {[%clk 0:01:10]}  Rab8 {[%clk 0:00:38]} 26. Nd2 {[%clk 0:00:54]}  Nxd2 {[%clk 0:00:32]} 27. Bxd2 {[%clk 0:00:54]}  Rxb1 {[%clk 0:00:30]} 28. Rxb1 {[%clk 0:00:53]}  Nb4 {[%clk 0:00:28]} 29. a3 {[%clk 0:00:53]}  Nc6 {[%clk 0:00:28]} 30. Qd3 {[%clk 0:00:53]}  Bxa3 {[%clk 0:00:19]} 31. Na4 {[%clk 0:00:47]}  Qf7 {[%clk 0:00:16]} 32. Qxa3 {[%clk 0:00:43]}  Nxd4 {[%clk 0:00:15]} 33. Qe3 {[%clk 0:00:35]}  Qf5 {[%clk 0:00:15]} 34. Rc1 {[%clk 0:00:20]}  Nf3+ {[%clk 0:00:11]} 35. Kf1 {[%clk 0:00:18]}  Rf8 {[%clk 0:00:06]} 36. Bxa5 {[%clk 0:00:16]}  d4 {[%clk 0:00:05]} 37. Qb3 {[%clk 0:00:13]}  d3 {[%clk 0:00:05]} 38. Bb6 {[%clk 0:00:11]}  Qh3# {[%clk 0:00:05]} 0-1


[Site "https://www.chess.com"]

[Event "Titled Tuesday Blitz October 31 Early 2023"]
[White "Shubenkova, Veronika"]
[Black "Paravyan, David"]
[WhiteFideId "44124040"]
[BlackFideId "4194985"]
[WhiteElo "2539"]
[BlackElo "3072"]
[Result "1/2-1/2"]
[Round "5"]
[TimeControl "180+1"]
[Date "2023.10.31"]
[WhiteClock "0:00:16"]
[BlackClock "0:01:09"]
[Board "51"]

1. e4 {[%clk 0:03:00]}  e5 {[%clk 0:02:58]} 2. Nf3 {[%clk 0:03:00]}  Nf6 {[%clk 0:02:58]} 3. Nxe5 {[%clk 0:03:00]}  d6 {[%clk 0:02:58]} 4. Nf3 {[%clk 0:03:00]}  Nxe4 {[%clk 0:02:58]} 5. d3 {[%clk 0:03:00]}  Nf6 {[%clk 0:02:58]} 6. d4 {[%clk 0:03:01]}  d5 {[%clk 0:02:59]} 7. Bd3 {[%clk 0:03:01]}  Bd6 {[%clk 0:02:58]} 8. O-O {[%clk 0:03:01]}  O-O {[%clk 0:02:58]} 9. h3 {[%clk 0:03:01]}  h6 {[%clk 0:02:58]} 10. c3 {[%clk 0:03:01]}  Nc6 {[%clk 0:02:58]} 11. Nbd2 {[%clk 0:03:00]}  Re8 {[%clk 0:02:59]} 12. Qc2 {[%clk 0:03:00]}  Bd7 {[%clk 0:02:57]} 13. b3 {[%clk 0:02:59]}  Nh5 {[%clk 0:02:57]} 14. Re1 {[%clk 0:02:48]}  Nf4 {[%clk 0:02:54]} 15. Rxe8+ {[%clk 0:02:47]}  Qxe8 {[%clk 0:02:55]} 16. Nf1 {[%clk 0:02:46]}  Nxd3 {[%clk 0:02:54]} 17. Qxd3 {[%clk 0:02:46]}  Qe6 {[%clk 0:02:49]} 18. Bd2 {[%clk 0:02:45]}  Qf5 {[%clk 0:02:48]} 19. Qxf5 {[%clk 0:02:43]}  Bxf5 {[%clk 0:02:49]} 20. Re1 {[%clk 0:02:42]}  f6 {[%clk 0:02:49]} 21. g4 {[%clk 0:02:41]}  Be4 {[%clk 0:02:48]} 22. Kg2 {[%clk 0:02:34]}  Kf7 {[%clk 0:02:41]} 23. Ng3 {[%clk 0:02:34]}  Bxg3 {[%clk 0:02:40]} 24. Kxg3 {[%clk 0:02:34]}  a5 {[%clk 0:02:40]} 25. Bf4 {[%clk 0:02:32]}  a4 {[%clk 0:02:39]} 26. b4 {[%clk 0:02:29]}  Bxf3 {[%clk 0:02:31]} 27. Kxf3 {[%clk 0:02:28]}  Na7 {[%clk 0:02:32]} 28. Bxc7 {[%clk 0:02:20]}  Rc8 {[%clk 0:02:31]} 29. Bd6 {[%clk 0:02:20]}  Rxc3+ {[%clk 0:02:29]} 30. Kg2 {[%clk 0:02:20]}  Nc8 {[%clk 0:02:29]} 31. Bf4 {[%clk 0:02:08]}  Rc4 {[%clk 0:02:27]} 32. Rc1 {[%clk 0:02:04]}  Rxc1 {[%clk 0:02:25]} 33. Bxc1 {[%clk 0:02:04]}  Nd6 {[%clk 0:02:26]} 34. a3 {[%clk 0:02:04]}  Nb5 {[%clk 0:02:23]} 35. Bb2 {[%clk 0:02:04]}  g6 {[%clk 0:02:21]} 36. Kf3 {[%clk 0:02:04]}  h5 {[%clk 0:02:21]} 37. Ke3 {[%clk 0:01:58]}  Ke6 {[%clk 0:02:21]} 38. f4 {[%clk 0:01:57]}  h4 {[%clk 0:02:16]} 39. Kd3 {[%clk 0:01:51]}  f5 {[%clk 0:02:15]} 40. g5 {[%clk 0:01:48]}  Kd7 {[%clk 0:02:15]} 41. Bc1 {[%clk 0:01:47]}  Kc6 {[%clk 0:02:16]} 42. Bb2 {[%clk 0:01:47]}  Nd6 {[%clk 0:02:15]} 43. Bc1 {[%clk 0:01:44]}  Kb5 {[%clk 0:02:16]} 44. Bd2 {[%clk 0:01:37]}  Nc4 {[%clk 0:02:14]} 45. Bc1 {[%clk 0:01:36]}  Nd6 {[%clk 0:02:13]} 46. Bd2 {[%clk 0:01:36]}  b6 {[%clk 0:02:13]} 47. Bc1 {[%clk 0:01:19]}  Ne4 {[%clk 0:02:12]} 48. Be3 {[%clk 0:01:18]}  Kc6 {[%clk 0:02:10]} 49. Kc2 {[%clk 0:01:10]}  Kb7 {[%clk 0:02:08]} 50. Kb2 {[%clk 0:01:05]}  Kc7 {[%clk 0:02:08]} 51. Kc2 {[%clk 0:01:05]}  Kc6 {[%clk 0:02:08]} 52. Kd3 {[%clk 0:01:03]}  Kb5 {[%clk 0:02:08]} 53. Bg1 {[%clk 0:00:59]}  Ng3 {[%clk 0:02:01]} 54. Bf2 {[%clk 0:00:56]}  Nh5 {[%clk 0:02:01]} 55. Be3 {[%clk 0:00:50]}  Ng7 {[%clk 0:02:02]} 56. Bd2 {[%clk 0:00:46]}  Ne8 {[%clk 0:02:01]} 57. Be1 {[%clk 0:00:46]}  Ng7 {[%clk 0:02:00]} 58. Bf2 {[%clk 0:00:40]}  Ne6 {[%clk 0:01:59]} 59. Be3 {[%clk 0:00:39]}  Kc6 {[%clk 0:01:58]} 60. Kc3 {[%clk 0:00:37]}  Nc7 {[%clk 0:01:59]} 61. Kd3 {[%clk 0:00:36]}  Nb5 {[%clk 0:01:59]} 62. Bc1 {[%clk 0:00:37]}  Kd7 {[%clk 0:01:59]} 63. Bb2 {[%clk 0:00:33]}  Nd6 {[%clk 0:01:59]} 64. Bc1 {[%clk 0:00:33]}  Kc6 {[%clk 0:01:57]} 65. Be3 {[%clk 0:00:31]}  Nb5 {[%clk 0:01:52]} 66. Bc1 {[%clk 0:00:31]}  Kd7 {[%clk 0:01:53]} 67. Bb2 {[%clk 0:00:30]}  Nd6 {[%clk 0:01:52]} 68. Bc1 {[%clk 0:00:30]}  Nc4 {[%clk 0:01:52]} 69. Kc3 {[%clk 0:00:28]}  Ke6 {[%clk 0:01:52]} 70. Kd3 {[%clk 0:00:28]}  Kf7 {[%clk 0:01:49]} 71. Kc3 {[%clk 0:00:28]}  Nd6 {[%clk 0:01:49]} 72. Kd3 {[%clk 0:00:28]}  Ne4 {[%clk 0:01:49]} 73. Be3 {[%clk 0:00:28]}  Ke8 {[%clk 0:01:48]} 74. Bg1 {[%clk 0:00:26]}  Kd7 {[%clk 0:01:49]} 75. Be3 {[%clk 0:00:26]}  Kc6 {[%clk 0:01:43]} 76. Bg1 {[%clk 0:00:26]}  Ng3 {[%clk 0:01:18]} 77. Bf2 {[%clk 0:00:26]}  Nh5 {[%clk 0:01:16]} 78. Be3 {[%clk 0:00:26]}  Kb5 {[%clk 0:01:17]} 79. Kc3 {[%clk 0:00:25]}  Ng7 {[%clk 0:01:16]} 80. Kd3 {[%clk 0:00:22]}  Ne8 {[%clk 0:01:16]} 81. Kc3 {[%clk 0:00:22]}  Nd6 {[%clk 0:01:14]} 82. Kd3 {[%clk 0:00:22]}  Kc6 {[%clk 0:01:10]} 83. Bd2 {[%clk 0:00:19]}  b5 {[%clk 0:01:09]} 84. Be3 {[%clk 0:00:18]}  Ne4 {[%clk 0:01:09]} 85. Bg1 {[%clk 0:00:16]}  Kd7 {[%clk 0:01:09]} 86. Be3 {[%clk 0:00:16]}  Ke6 {[%clk 0:01:10]} 87. Kc2 {[%clk 0:00:15]}  Ng3 {[%clk 0:01:09]} 88. Kd3 {[%clk 0:00:15]}  Ne4 {[%clk 0:01:06]} 89. Kc2 {[%clk 0:00:15]}  Nd6 {[%clk 0:01:07]} 90. Kd3 {[%clk 0:00:15]}  Nc4 {[%clk 0:01:08]} 91. Bc1 {[%clk 0:00:15]}  Kd7 {[%clk 0:01:07]} 92. Kc3 {[%clk 0:00:15]}  Ke7 {[%clk 0:01:07]} 93. Kd3 {[%clk 0:00:15]}  Ke6 {[%clk 0:01:08]} 94. Kc3 {[%clk 0:00:16]}  Kd7 {[%clk 0:01:07]} 95. Kd3 {[%clk 0:00:16]}  Nd6 {[%clk 0:01:08]} 96. Be3 {[%clk 0:00:16]}  Kc6 {[%clk 0:01:07]} 97. Kc3 {[%clk 0:00:15]}  Ne4+ {[%clk 0:01:07]} 98. Kd3 {[%clk 0:00:15]}  Kd7 {[%clk 0:01:07]} 99. Bg1 {[%clk 0:00:15]}  Ke8 {[%clk 0:01:07]} 100. Be3 {[%clk 0:00:15]}  Kf7 {[%clk 0:01:08]} 101. Bg1 {[%clk 0:00:16]}  Ke7 {[%clk 0:01:09]} 102. Be3 {[%clk 0:00:16]}  Ke6 {[%clk 0:01:09]} 1/2-1/2


[Site "https://www.chess.com"]

[Event "Titled Tuesday Blitz October 31 Early 2023"]
[White "Herzog2012"]
[Black "Golizadeh, Asghar"]
[BlackFideId "12505269"]
[WhiteElo "2555"]
[BlackElo "2782"]
[Result "1-0"]
[Round "5"]
[TimeControl "180+1"]
[Date "2023.10.31"]
[WhiteClock "0:00:47"]
[BlackClock "0:00:05"]
[Board "56"]

1. e4 {[%clk 0:02:51]}  c5 {[%clk 0:02:59]} 2. Nf3 {[%clk 0:02:51]}  g6 {[%clk 0:02:59]} 3. d4 {[%clk 0:02:51]}  cxd4 {[%clk 0:03:00]} 4. Qxd4 {[%clk 0:02:50]}  Nf6 {[%clk 0:03:00]} 5. Nc3 {[%clk 0:02:50]}  Nc6 {[%clk 0:03:00]} 6. Qa4 {[%clk 0:02:50]}  d6 {[%clk 0:03:01]} 7. e5 {[%clk 0:02:50]}  dxe5 {[%clk 0:03:02]} 8. Nxe5 {[%clk 0:02:50]}  Bd7 {[%clk 0:03:03]} 9. Nxd7 {[%clk 0:02:49]}  Nxd7 {[%clk 0:03:04]} 10. Be3 {[%clk 0:02:44]}  Bg7 {[%clk 0:03:03]} 11. Be2 {[%clk 0:02:30]}  O-O {[%clk 0:03:00]} 12. O-O {[%clk 0:02:28]}  Nde5 {[%clk 0:02:56]} 13. Rad1 {[%clk 0:02:24]}  Qc8 {[%clk 0:02:54]} 14. h3 {[%clk 0:02:10]}  Qf5 {[%clk 0:02:16]} 15. f4 {[%clk 0:01:45]}  Bh6 {[%clk 0:01:19]} 16. Nd5 {[%clk 0:01:09]}  Rfd8 {[%clk 0:00:20]} 17. fxe5 {[%clk 0:00:53]}  Bxe3+ {[%clk 0:00:20]} 18. Nxe3 {[%clk 0:00:53]}  Qxe5 {[%clk 0:00:21]} 19. Qf4 {[%clk 0:00:50]}  Rxd1 {[%clk 0:00:17]} 20. Bxd1 {[%clk 0:00:50]}  Qe6 {[%clk 0:00:16]} 21. c3 {[%clk 0:00:48]}  Rf8 {[%clk 0:00:12]} 22. Bb3 {[%clk 0:00:47]}  Qd7 {[%clk 0:00:08]} 23. Bxf7+ {[%clk 0:00:46]}  Kg7 {[%clk 0:00:08]} 24. Ng4 {[%clk 0:00:46]}  Qd6 {[%clk 0:00:06]} 25. Qh6+ {[%clk 0:00:46]}  Kh8 {[%clk 0:00:05]} 26. Qxf8# {[%clk 0:00:47]} 1-0


[Site "https://www.chess.com"]

[Event "Titled Tuesday Blitz October 31 Early 2023"]
[White "Toropov, Pavel"]
[Black "Hamitevici, Vladimir"]
[WhiteFideId "24129178"]
[BlackFideId "13902393"]
[WhiteElo "2544"]
[BlackElo "2749"]
[Result "1-0"]
[Round "5"]
[TimeControl "180+1"]
[Date "2023.10.31"]
[WhiteClock "0:00:06"]
[BlackClock "0:00:12"]
[Board "57"]

1. e4 {[%clk 0:02:56]}  d6 {[%clk 0:03:00]} 2. d4 {[%clk 0:02:55]}  g6 {[%clk 0:03:01]} 3. Nc3 {[%clk 0:02:56]}  c6 {[%clk 0:03:01]} 4. h3 {[%clk 0:02:56]}  b5 {[%clk 0:02:59]} 5. g4 {[%clk 0:02:56]}  Bg7 {[%clk 0:02:55]} 6. Bg2 {[%clk 0:02:56]}  Qc7 {[%clk 0:02:51]} 7. Nge2 {[%clk 0:02:56]}  Nd7 {[%clk 0:02:51]} 8. O-O {[%clk 0:02:55]}  b4 {[%clk 0:02:49]} 9. Nb1 {[%clk 0:02:32]}  Rb8 {[%clk 0:02:49]} 10. Be3 {[%clk 0:02:30]}  c5 {[%clk 0:02:48]} 11. Nd2 {[%clk 0:02:29]}  Ngf6 {[%clk 0:02:44]} 12. f4 {[%clk 0:02:20]}  cxd4 {[%clk 0:02:26]} 13. Nxd4 {[%clk 0:02:11]}  O-O {[%clk 0:02:24]} 14. g5 {[%clk 0:01:30]}  Ne8 {[%clk 0:02:20]} 15. Rc1 {[%clk 0:01:12]}  e5 {[%clk 0:02:17]} 16. N4f3 {[%clk 0:01:04]}  exf4 {[%clk 0:02:13]} 17. Bxf4 {[%clk 0:01:05]}  Ne5 {[%clk 0:02:14]} 18. Nxe5 {[%clk 0:00:41]}  dxe5 {[%clk 0:02:14]} 19. Be3 {[%clk 0:00:38]}  Be6 {[%clk 0:02:13]} 20. c4 {[%clk 0:00:32]}  bxc3 {[%clk 0:02:11]} 21. Rxc3 {[%clk 0:00:33]}  Qd8 {[%clk 0:01:49]} 22. Nc4 {[%clk 0:00:29]}  Bxc4 {[%clk 0:01:39]} 23. Rxc4 {[%clk 0:00:28]}  Nd6 {[%clk 0:01:32]} 24. Rc6 {[%clk 0:00:27]}  Nb5 {[%clk 0:01:30]} 25. Qxd8 {[%clk 0:00:20]}  Rfxd8 {[%clk 0:01:29]} 26. Rfc1 {[%clk 0:00:16]}  Nd4 {[%clk 0:01:25]} 27. Bxd4 {[%clk 0:00:16]}  Rxd4 {[%clk 0:01:25]} 28. b3 {[%clk 0:00:15]}  Bf8 {[%clk 0:01:19]} 29. Rc8 {[%clk 0:00:15]}  Rxc8 {[%clk 0:01:15]} 30. Rxc8 {[%clk 0:00:16]}  Rd1+ {[%clk 0:01:11]} 31. Bf1 {[%clk 0:00:14]}  Rd2 {[%clk 0:01:11]} 32. Rc7 {[%clk 0:00:12]}  Bd6 {[%clk 0:01:10]} 33. Rb7 {[%clk 0:00:09]}  Bc5+ {[%clk 0:01:08]} 34. Kh1 {[%clk 0:00:08]}  Rxa2 {[%clk 0:01:07]} 35. Bc4 {[%clk 0:00:09]}  Rf2 {[%clk 0:01:07]} 36. h4 {[%clk 0:00:08]}  Rf4 {[%clk 0:01:05]} 37. Kg2 {[%clk 0:00:07]}  Kg7 {[%clk 0:01:00]} 38. Bd5 {[%clk 0:00:07]}  Bf2 {[%clk 0:00:52]} 39. Re7 {[%clk 0:00:05]}  Bxh4 {[%clk 0:00:49]} 40. Rxe5 {[%clk 0:00:05]}  Bf2 {[%clk 0:00:34]} 41. Re7 {[%clk 0:00:01]}  Bc5 {[%clk 0:00:31]} 42. Rc7 {[%clk 0:00:01]}  Bb6 {[%clk 0:00:31]} 43. Rd7 {[%clk 0:00:02]}  Kf8 {[%clk 0:00:31]} 44. Kg3 {[%clk 0:00:02]}  Rf1 {[%clk 0:00:28]} 45. Rb7 {[%clk 0:00:02]}  Ke8 {[%clk 0:00:25]} 46. Rb8+ {[%clk 0:00:03]}  Ke7 {[%clk 0:00:24]} 47. Rb7+ {[%clk 0:00:03]}  Kf8 {[%clk 0:00:24]} 48. Rb8+ {[%clk 0:00:04]}  Kg7 {[%clk 0:00:25]} 49. Rb7 {[%clk 0:00:05]}  Be3 {[%clk 0:00:24]} 50. Kg2 {[%clk 0:00:04]}  Rf2+ {[%clk 0:00:24]} 51. Kg3 {[%clk 0:00:05]}  Rf1 {[%clk 0:00:21]} 52. Kg2 {[%clk 0:00:05]}  Rf2+ {[%clk 0:00:18]} 53. Kg3 {[%clk 0:00:06]}  Bd4 {[%clk 0:00:17]} 54. Rb4 {[%clk 0:00:03]}  Rd2 {[%clk 0:00:16]} 55. Rb7 {[%clk 0:00:03]}  Be5+ {[%clk 0:00:16]} 56. Kf3 {[%clk 0:00:03]}  Rd3+ {[%clk 0:00:16]} 57. Ke2 {[%clk 0:00:03]}  Rg3 {[%clk 0:00:14]} 58. Rxf7+ {[%clk 0:00:03]}  Kg8 {[%clk 0:00:13]} 59. Rf5+ {[%clk 0:00:03]}  Kg7 {[%clk 0:00:12]} 60. Rxe5 {[%clk 0:00:04]}  h6 {[%clk 0:00:12]} 61. Re7+ {[%clk 0:00:04]}  Kf8 {[%clk 0:00:11]} 62. Rf7+ {[%clk 0:00:05]}  Ke8 {[%clk 0:00:12]} 63. gxh6 {[%clk 0:00:05]}  Rh3 {[%clk 0:00:13]} 64. h7 {[%clk 0:00:05]}  g5 {[%clk 0:00:13]} 65. Rg7 {[%clk 0:00:06]}  g4 {[%clk 0:00:12]} 66. Rg8+ {[%clk 0:00:06]} 1-0


[Site "https://www.chess.com"]

[Event "Titled Tuesday Blitz October 31 Early 2023"]
[White "TimGrutter03"]
[Black "Csonka, Balazs"]
[BlackFideId "742910"]
[WhiteElo "2538"]
[BlackElo "2722"]
[Result "0-1"]
[Round "5"]
[TimeControl "180+1"]
[Date "2023.10.31"]
[WhiteClock "0:00:32"]
[BlackClock "0:00:31"]
[Board "58"]

1. d4 {[%clk 0:03:00]}  d5 {[%clk 0:03:00]} 2. Nf3 {[%clk 0:03:01]}  c5 {[%clk 0:02:59]} 3. dxc5 {[%clk 0:02:57]}  e6 {[%clk 0:02:56]} 4. e3 {[%clk 0:02:56]}  Bxc5 {[%clk 0:02:55]} 5. c4 {[%clk 0:02:57]}  Nf6 {[%clk 0:02:56]} 6. Be2 {[%clk 0:02:50]}  O-O {[%clk 0:02:55]} 7. O-O {[%clk 0:02:50]}  Nc6 {[%clk 0:02:53]} 8. a3 {[%clk 0:02:49]}  dxc4 {[%clk 0:02:34]} 9. Bxc4 {[%clk 0:02:46]}  Qe7 {[%clk 0:02:07]} 10. b4 {[%clk 0:02:42]}  Bd6 {[%clk 0:02:07]} 11. Bb2 {[%clk 0:02:41]}  e5 {[%clk 0:02:00]} 12. Qb3 {[%clk 0:02:23]}  e4 {[%clk 0:01:52]} 13. Ng5 {[%clk 0:01:54]}  Bxh2+ {[%clk 0:01:24]} 14. Kh1 {[%clk 0:01:53]}  Be5 {[%clk 0:01:18]} 15. Nxf7 {[%clk 0:01:46]}  Rxf7 {[%clk 0:01:12]} 16. Bxf7+ {[%clk 0:01:46]}  Qxf7 {[%clk 0:01:12]} 17. Qxf7+ {[%clk 0:01:46]}  Kxf7 {[%clk 0:01:13]} 18. Bxe5 {[%clk 0:01:45]}  Nxe5 {[%clk 0:01:12]} 19. Nc3 {[%clk 0:01:39]}  Be6 {[%clk 0:01:08]} 20. f3 {[%clk 0:01:33]}  exf3 {[%clk 0:01:06]} 21. gxf3 {[%clk 0:01:34]}  Bc4 {[%clk 0:01:00]} 22. Rf2 {[%clk 0:01:28]}  Rd8 {[%clk 0:01:01]} 23. Rd1 {[%clk 0:01:20]}  Rxd1+ {[%clk 0:00:55]} 24. Nxd1 {[%clk 0:01:21]}  g5 {[%clk 0:00:54]} 25. Nc3 {[%clk 0:01:09]}  h5 {[%clk 0:00:52]} 26. Ne4 {[%clk 0:00:53]}  Nxe4 {[%clk 0:00:47]} 27. fxe4+ {[%clk 0:00:54]}  Ke6 {[%clk 0:00:47]} 28. Rf5 {[%clk 0:00:51]}  Bd3 {[%clk 0:00:48]} 29. Rf8 {[%clk 0:00:44]}  Bxe4+ {[%clk 0:00:46]} 30. Kg1 {[%clk 0:00:42]}  h4 {[%clk 0:00:38]} 31. Re8+ {[%clk 0:00:41]}  Kf5 {[%clk 0:00:37]} 32. Kf2 {[%clk 0:00:37]}  Ng4+ {[%clk 0:00:33]} 33. Ke2 {[%clk 0:00:35]}  h3 {[%clk 0:00:33]} 34. Rf8+ {[%clk 0:00:32]}  Kg6 {[%clk 0:00:31]} 0-1


[Site "https://www.chess.com"]